bitfinex-derivatives/quotes_SOLF0:USTF0_20240923
["timestamp","ask_amount","ask_price","bid_price","bid_amount"]
[1727055386556,3.3892,147.52,147.48,3.3901]
[1727055387351,1.54344222,147.53,147.47,18.24]
[1727055388061,4.93254222,147.53,147.49,3.3897]
[1727055388260,1.54344222,147.53,147.49,3.3897]
[1727055388451,1.54344222,147.53,147.47,18.24]
[1727055388452,1.54344222,147.53,147.46,3.3905]
[1727055388857,1.54344222,147.53,147.44,18.24]
[1727055388858,1.54344222,147.53,147.47,18.24]
[1727055389154,3.3897,147.5,147.47,18.24]
[1727055389465,1.54344222,147.53,147.47,18.24]
[1727055390157,3.3894,147.51,147.47,18.24]
[1727055390359,1.54344222,147.53,147.47,18.24]
[1727055390651,1.54344222,147.53,147.48,3.3899]
[1727055390652,3.3893,147.52,147.48,3.3899]
[1727055390857,3.3893,147.52,147.47,18.24]
[1727055391359,3.3893,147.52,147.48,3.39]
[1727055392765,1.54344222,147.53,147.47,21.6302]
[1727055392962,1.54344222,147.53,147.47,18.24]
[1727055393859,4.93254222,147.53,147.47,18.24]
[1727055394455,3.3892,147.52,147.47,18.24]
[1727055394963,1.54344222,147.53,147.49,3.3897]
[1727055395171,1.54344222,147.53,147.47,18.24]
[1727055395564,1.54344222,147.53,147.49,3.3898]
[1727055396262,4.93254222,147.53,147.49,3.3898]
[1727055396861,1.54344222,147.53,147.5,3.3896]
[1727055397265,1.54344222,147.53,147.47,18.24]
[1727055397565,3.3892,147.52,147.48,3.39]
[1727055398270,1.54344222,147.53,147.47,18.24]
[1727055398764,3.3892,147.52,147.47,18.24]
[1727055399268,4.93254222,147.53,147.47,18.24]
[1727055399462,1.54344222,147.53,147.49,18.24]
[1727055399767,1.54344222,147.53,147.51,18.24]
[1727055399970,1.54344222,147.53,147.52,3.3892]
[1727055400169,0.64738393,147.55,147.51,18.24]
[1727055400563,0.64738393,147.55,147.44,3.34712706]
[1727055400761,0.64738393,147.55,147.48,18.24]
[1727055401268,3.3887,147.54,147.48,18.24]
[1727055401455,0.64738393,147.55,147.5,18.24]
[1727055401655,3.3889,147.53,147.5,21.6294]
[1727055401859,0.64738393,147.55,147.5,21.6294]
[1727055402080,0.64738393,147.55,147.5,18.24]
[1727055402369,0.64738393,147.55,147.48,18.24]
[1727055402966,3.3889,147.53,147.49,3.3897]
[1727055403160,3.3889,147.53,147.48,18.24]
[1727055403770,0.64738393,147.55,147.48,18.24]
[1727055403960,0.64738393,147.55,147.45,21.55999457]
[1727055403961,0.64738393,147.55,147.45,18.24]
[1727055404161,4.1597,147.54,147.45,18.24]
[1727055404369,3.3895,147.51,147.47,11.4]
[1727055404772,4.1597,147.54,147.47,14.7902]
[1727055405271,0.64738393,147.55,147.49,11.4]
[1727055405960,0.64738393,147.55,147.49,14.7897]
[1727055406373,0.64738393,147.55,147.49,11.4]
[1727055406572,0.64738393,147.55,147.49,14.7898]
[1727055407076,3.3891,147.53,147.49,14.7898]
[1727055407268,0.64738393,147.55,147.49,11.4]
[1727055407666,0.64738393,147.55,147.47,11.4]
[1727055407971,0.64738393,147.55,147.47,14.7901]
[1727055408180,0.64738393,147.55,147.47,11.4]
[1727055408368,0.64738393,147.55,147.51,11.4]
[1727055408772,3.3889,147.54,147.51,11.4]
[1727055409362,0.64738393,147.55,147.51,11.4]
[1727055409363,3.389,147.53,147.51,11.4]
[1727055409978,3.3894,147.52,147.48,14.79]
[1727055410672,0.64738393,147.55,147.48,11.4]
[1727055411174,0.64738393,147.55,147.5,11.4]
[1727055411768,0.64738393,147.55,147.51,3.3893]
[1727055411964,0.64738393,147.55,147.5,11.4]
[1727055412169,3.3901,147.48,147.44,3.3908]
[1727055412371,3.3714305,147.5,147.43,4.145]
[1727055412568,0.64738393,147.55,147.46,11.4]
[1727055413079,3.3898,147.5,147.46,11.4]
[1727055413374,3.34938614,147.5,147.46,11.4]
[1727055413575,3.3898,147.5,147.46,11.4]
[1727055413776,3.36634334,147.5,147.46,11.4]
[1727055413973,12.04738393,147.55,147.46,11.4]
[1727055414667,12.04738393,147.55,147.45,3.3906]
[1727055414668,3.3898,147.5,147.45,3.3906]
[1727055414981,3.3898,147.5,147.42,11.4]
[1727055414982,3.33141716,147.5,147.42,11.4]
[1727055415276,4.0856,147.49,147.4,11.4]
[1727055415775,3.391,147.45,147.4,14.7919]
[1727055415966,15.4856,147.49,147.4,14.7919]
[1727055416367,15.4856,147.49,147.36,11.4]
[1727055416368,11.4,147.45,147.36,11.4]
[1727055417677,11.4,147.43,147.34,11.4]
[1727055417884,11.4,147.41,147.32,11.4]
[1727055418069,14.87680619,147.41,147.32,11.4]
[1727055418273,11.4,147.39,147.3,11.4]
[1727055418478,3.3932,147.35,147.3,11.4]
[1727055418782,11.4,147.39,147.3,11.4]
[1727055418977,3.3933,147.34,147.3,11.4]
[1727055420978,3.3935,147.33,147.29,11.4]
[1727055421479,3.3935,147.33,147.29,14.7944]
[1727055421669,3.3932,147.35,147.31,11.4]
[1727055422171,3.47680619,147.41,147.34,11.4]
[1727055422377,4.1051,147.42,147.36,11.4]
[1727055422778,7.46039847,147.42,147.38,11.4]
[1727055423076,3.35529847,147.42,147.4,11.4]
[1727055423268,11.4,147.49,147.4,11.4]
[1727055423269,15.3549,147.49,147.4,11.4]
[1727055423579,3.9549,147.49,147.42,11.4]
[1727055424682,3.3907,147.46,147.42,11.4]
[1727055425073,3.9549,147.49,147.44,11.4]
[1727055425288,93.48738393,147.55,147.45,11.4]
[1727055425580,1.3446,147.54,147.45,14.7906]
[1727055425782,1.3446,147.54,147.45,11.4]
[1727055426385,1.3446,147.54,147.44,18.25]
[1727055426586,1.3446,147.54,147.44,21.6408]
[1727055426783,1.3446,147.54,147.44,18.25]
[1727055427184,3.3899,147.49,147.44,21.6409]
[1727055428073,3.3901,147.48,147.44,18.25]
[1727055428276,3.40844305,147.5,147.42,18.25]
[1727055428475,1.3446,147.54,147.42,18.25]
[1727055429487,3.3905,147.47,147.42,21.6414]
[1727055429681,3.42708828,147.47,147.42,21.6414]
[1727055429881,1.3446,147.54,147.42,21.6414]
[1727055430375,3.3905,147.47,147.42,21.6414]
[1727055430577,3.44032028,147.47,147.42,21.6414]
[1727055430785,18.25,147.53,147.42,18.25]
[1727055431385,3.3907,147.46,147.42,18.25]
[1727055431580,6.80105382,147.46,147.42,18.25]
[1727055431982,6.80105382,147.46,147.42,21.6414]
[1727055433088,18.25,147.53,147.42,21.6414]
[1727055433385,3.3908,147.45,147.42,18.25]
[1727055433577,1.3446,147.54,147.42,18.25]
[1727055433777,19.5946,147.54,147.42,18.25]
[1727055434180,19.5946,147.54,147.44,3.3909]
[1727055434389,19.5946,147.54,147.42,18.25]
[1727055434585,26.73217184,147.53,147.42,18.25]
[1727055434781,18.25,147.52,147.42,18.25]
[1727055434982,26.73217184,147.51,147.4,18.25]
[1727055435177,30.16004536,147.51,147.4,18.25]
[1727055435378,26.73217184,147.5,147.4,18.25]
[1727055435683,44.98217184,147.5,147.38,1.4292]
[1727055435884,26.73217184,147.49,147.38,1.4292]
[1727055436291,26.73217184,147.49,147.39,3.3921]
[1727055436292,3.3914,147.43,147.39,3.3921]
[1727055436486,29.45097184,147.48,147.39,18.25]
[1727055436681,26.73217184,147.47,147.39,18.25]
[1727055436888,14.54158417,147.46,147.39,18.25]
[1727055437086,12.19058767,147.47,147.39,18.25]
[1727055437280,14.90938767,147.48,147.39,18.25]
[1727055437483,1.3223,147.47,147.39,18.25]
[1727055437689,3.3914,147.43,147.39,21.642]
[1727055439291,3.3915,147.42,147.39,21.642]
[1727055439485,14.54638083,147.45,147.39,18.25]
[1727055439804,3.3921,147.4,147.37,18.25]
[1727055440094,3.3921,147.4,147.37,21.6426]
[1727055440489,3.3919,147.41,147.37,21.6426]
[1727055441384,3.3914,147.43,147.37,18.25]
[1727055441694,1.3223,147.47,147.39,18.25]
[1727055442693,3.3913,147.43,147.4,3.3919]
[1727055443687,3.3913,147.43,147.39,21.6421]
[1727055443883,1.3223,147.47,147.37,18.25]
[1727055444597,1.3223,147.47,147.37,21.6425]
[1727055444997,1.3223,147.47,147.35,18.25]
[1727055445185,18.25,147.45,147.35,18.25]
[1727055445390,18.25,147.45,147.33,1.3355]
[1727055445590,3.3926,147.38,147.33,3.3935]
[1727055445799,3.35743249,147.37,147.33,3.3935]
[1727055446396,3.35743249,147.37,147.33,14.8035]
[1727055446992,6.75003249,147.37,147.33,11.41]
[1727055447189,11.41,147.4,147.31,11.41]
[1727055447396,16.23001811,147.4,147.31,11.41]
[1727055447698,16.23001811,147.4,147.3,3.3941]
[1727055447699,3.3932,147.35,147.3,3.3941]
[1727055448601,3.3932,147.35,147.31,3.3939]
[1727055449905,11.41,147.38,147.28,11.41]
[1727055450093,11.41,147.38,147.24,0.6176]
[1727055450094,11.41,147.34,147.15,225.0]
[1727055450300,1.3499,147.33,147.24,14.8054]
[1727055450507,11.41,147.32,147.24,14.8054]
[1727055450696,11.41,147.32,147.2,2.7523]
[1727055450910,3.395,147.27,147.22,3.3959]
[1727055451103,3.33899456,147.26,147.22,3.3959]
[1727055451710,6.73419456,147.26,147.22,3.3959]
[1727055451911,6.73419456,147.26,147.21,14.8062]
[1727055452108,6.73419456,147.26,147.21,11.41]
[1727055452410,3.3954,147.25,147.2,2.7523]
[1727055452709,18.26,147.32,147.19,18.26]
[1727055452907,3.3955,147.25,147.2,3.3964]
[1727055453101,3.3955,147.25,147.19,18.26]
[1727055453497,3.3959,147.23,147.17,18.26]
[1727055453715,18.26,147.29,147.17,18.26]
[1727055454213,18.26,147.29,147.17,21.657]
[1727055454617,21.57419892,147.29,147.18,3.3969]
[1727055454815,21.57419892,147.29,147.17,18.26]
[1727055455319,3.31419892,147.29,147.22,18.26]
[1727055455509,4.0859,147.33,147.22,18.26]
[1727055455710,3.3948,147.28,147.23,3.3957]
[1727055455904,3.36448613,147.28,147.22,18.26]
[1727055456103,4.0859,147.33,147.22,18.26]
[1727055456308,3.3948,147.28,147.23,3.3958]
[1727055456518,3.32337294,147.28,147.22,18.26]
[1727055456704,4.0859,147.33,147.22,18.26]
[1727055457112,4.0859,147.33,147.24,3.3954]
[1727055458718,3.3946,147.29,147.25,3.3953]
[1727055458907,6.75681896,147.29,147.25,3.3953]
[1727055459408,3.36221896,147.29,147.25,3.3953]
[1727055459610,3.3943,147.3,147.25,3.3953]
[1727055460109,3.394,147.31,147.24,18.26]
[1727055460320,4.0859,147.33,147.24,18.26]
[1727055460508,3.3939,147.32,147.27,3.3947]
[1727055460908,4.0859,147.33,147.23,2.7414]
[1727055461111,22.3459,147.33,147.24,3.3955]
[1727055461311,22.3459,147.33,147.22,18.26]
[1727055462105,3.3944,147.3,147.25,3.3953]
[1727055462517,3.3944,147.3,147.22,18.26]
[1727055462706,3.3944,147.3,147.25,3.3952]
[1727055463014,3.3944,147.3,147.22,18.26]
[1727055463406,3.46232248,147.29,147.26,3.395]
[1727055464114,3.3941,147.31,147.27,3.3949]
[1727055464319,4.0859,147.33,147.27,3.3949]
[1727055464621,4.0859,147.33,147.24,18.26]
[1727055465010,7.4794,147.33,147.29,3.3944]
[1727055465311,4.7434,147.33,147.29,3.3944]
[1727055466109,3.3935,147.33,147.29,3.3944]
[1727055466314,3.3934,147.34,147.26,18.26]
[1727055466514,2.7045,147.37,147.26,18.26]
[1727055467214,3.3931,147.35,147.3,3.394]
[1727055467409,2.7045,147.37,147.26,18.26]
[1727055467715,2.7045,147.37,147.29,18.26]
[1727055468019,86.8020019,147.41,147.31,18.26]
[1727055468420,3.392,147.4,147.36,3.3928]
[1727055468617,6.77673145,147.4,147.36,3.3928]
[1727055469119,3.3923,147.39,147.31,18.26]
[1727055469309,86.8020019,147.41,147.31,18.26]
[1727055469512,90.27842368,147.41,147.31,18.26]
[1727055469724,90.27842368,147.41,147.32,3.3936]
[1727055470218,18.26,147.4,147.31,3.3939]
[1727055471717,3.3933,147.35,147.3,3.3941]
[1727055472015,18.26,147.4,147.27,18.26]
[1727055472229,18.26,147.4,147.32,3.3937]
[1727055472415,11.41,147.39,147.32,3.3937]
[1727055473213,90.27842368,147.41,147.33,3.3935]
[1727055473416,3.47642178,147.41,147.32,11.41]
[1727055473720,3.3923,147.39,147.35,3.393]
[1727055474020,6.79287049,147.39,147.32,11.41]
[1727055474228,3.3923,147.39,147.32,11.41]
[1727055474611,3.3923,147.39,147.34,14.8031]
[1727055474917,3.39377886,147.38,147.34,11.41]
[1727055475118,3.392,147.4,147.34,11.41]
[1727055475617,6.70971257,147.4,147.34,11.41]
[1727055475818,6.70971257,147.4,147.36,3.3927]
[1727055476020,3.31771257,147.4,147.36,11.41]
[1727055476211,3.3918,147.41,147.37,3.3924]
[1727055476406,3.44539527,147.4,147.36,11.41]
[1727055476611,1.3418,147.42,147.36,11.41]
[1727055476612,4.7334,147.42,147.36,11.41]
[1727055476925,14.1243,147.45,147.36,11.41]
[1727055477127,3.3919,147.41,147.36,11.41]
[1727055477306,3.45792809,147.4,147.36,11.41]
[1727055477713,3.3919,147.4,147.34,11.41]
[1727055477915,6.72388156,147.4,147.35,3.3929]
[1727055478112,3.33198156,147.4,147.32,11.41]
[1727055478312,3.3928,147.37,147.31,2.7306]
[1727055478523,11.41,147.39,147.31,1.3835]
[1727055478721,11.41,147.39,147.3,11.41]
[1727055478917,3.3932,147.35,147.3,14.8041]
[1727055479122,3.47286514,147.35,147.3,11.41]
[1727055479426,2.6995,147.38,147.3,11.41]
[1727055479639,3.393,147.36,147.32,3.3937]
[1727055479926,3.40339477,147.35,147.32,3.3937]
[1727055481018,6.79659477,147.35,147.3,14.804]
[1727055481422,6.79659477,147.35,147.31,3.394]
[1727055481930,3.40339477,147.35,147.32,14.8036]
[1727055482127,1.3311,147.4,147.34,11.41]
[1727055482319,11.41,147.43,147.35,11.41]
[1727055482521,3.3916,147.42,147.37,14.8025]
[1727055482723,4.1105,147.44,147.37,11.41]
[1727055483225,3.3598188,147.45,147.37,11.41]
[1727055483424,11.41,147.47,147.37,11.41]
[1727055483825,3.3911,147.44,147.39,14.802]
[1727055484027,3.43370222,147.44,147.39,14.802]
[1727055484227,11.41,147.48,147.39,11.41]
[1727055484437,22.3505,147.49,147.38,3.3922]
[1727055484628,22.3505,147.49,147.37,18.24]
[1727055484629,4.1105,147.49,147.37,18.24]
[1727055484815,4.1105,147.49,147.39,18.24]
[1727055485121,3.3907,147.46,147.41,3.3917]
[1727055485325,3.33457804,147.45,147.41,3.3917]
[1727055486118,3.3902,147.48,147.39,18.24]
[1727055486321,3.40736212,147.53,147.41,18.24]
[1727055486626,22.3484,147.54,147.41,18.24]
[1727055486830,3.39,147.49,147.44,3.3908]
[1727055487218,3.3898,147.5,147.41,18.24]
[1727055487424,3.3898,147.5,147.41,21.64301343]
[1727055487618,3.3898,147.5,147.42,2.8383]
[1727055487820,3.3898,147.5,147.44,18.24]
[1727055488232,3.3898,147.5,147.45,3.3906]
[1727055489328,3.3899,147.49,147.44,21.6309]
[1727055489634,3.3899,147.49,147.44,18.24]
[1727055489833,21.99554217,147.54,147.44,18.24]
[1727055490031,7.54059763,147.54,147.44,18.24]
[1727055490226,4.80439763,147.54,147.46,18.24]
[1727055490431,3.43219763,147.54,147.46,18.24]
[1727055490736,0.64738393,147.55,147.46,18.24]
[1727055491032,3.3891,147.53,147.48,3.3901]
[1727055491532,4.05863376,147.55,147.46,3.3904]
[1727055491739,4.05863376,147.55,147.44,18.24]
[1727055492237,3.3892,147.52,147.47,3.3902]
[1727055492434,3.3892,147.52,147.46,18.24]
[1727055493338,3.3892,147.52,147.48,3.3899]
[1727055494041,3.3895,147.51,147.47,3.3902]
[1727055494637,4.05863376,147.55,147.44,18.24]
[1727055495243,4.05863376,147.55,147.47,3.3903]
[1727055495437,4.05863376,147.55,147.44,18.24]
[1727055495649,4.05863376,147.55,147.48,18.24]
[1727055496046,3.3889,147.54,147.48,18.24]
[1727055496246,3.3889,147.54,147.5,3.3895]
[1727055496444,4.05863376,147.55,147.51,18.24]
[1727055496445,0.64738393,147.55,147.51,18.24]
[1727055496757,0.64738393,147.55,147.53,3.3888]
[1727055497143,0.64738393,147.55,147.51,21.6294]
[1727055497362,0.64738393,147.55,147.49,3.3152]
[1727055498054,0.64738393,147.55,147.49,2.6997]
[1727055498258,0.64738393,147.55,147.46,18.24]
[1727055498754,3.3895,147.51,147.47,3.3901]
[1727055498956,0.64738393,147.55,147.44,18.24]
[1727055499158,18.24,147.53,147.42,3.3283]
[1727055499656,4.0553,147.54,147.42,3.3283]
[1727055499962,3.3894,147.51,147.44,18.24]
[1727055500166,4.0553,147.54,147.44,18.24]
[1727055500460,3.3892,147.52,147.48,3.3901]
[1727055500959,3.3891,147.53,147.46,18.24]
[1727055502260,0.64738393,147.55,147.49,18.24]
[1727055503051,0.64738393,147.55,147.5,2.6965]
[1727055503356,0.64738393,147.55,147.53,3.3888]
[1727055505560,0.64738393,147.55,147.51,14.7892]
[1727055505759,0.64738393,147.55,147.51,3.3892]
[1727055506059,4.03588393,147.55,147.52,3.3891]
[1727055506560,0.64738393,147.55,147.52,11.4]
[1727055506954,0.64738393,147.55,147.51,11.4]
[1727055507262,3.3893,147.52,147.49,11.4]
[1727055507568,0.64738393,147.55,147.43,2.7581]
[1727055507764,12.04738393,147.55,147.45,11.4]
[1727055508055,11.4,147.51,147.41,11.4]
[1727055508255,11.4,147.52,147.41,11.4]
[1727055508452,11.4,147.52,147.43,11.4]
[1727055508660,3.3903,147.48,147.43,14.7912]
[1727055508960,3.45506307,147.48,147.43,14.7912]
[1727055509162,11.4,147.52,147.43,14.7912]
[1727055509758,14.73683924,147.52,147.43,14.7912]
[1727055510064,3.3902,147.48,147.43,14.7912]
[1727055510260,3.3902,147.48,147.43,3.3912]
[1727055510850,3.33683924,147.52,147.43,18.23]
[1727055511064,4.1888,147.54,147.43,18.23]
[1727055511260,4.1888,147.54,147.44,3.3908]
[1727055511560,7.50630016,147.54,147.44,3.3908]
[1727055512258,7.50630016,147.54,147.45,3.3907]
[1727055513165,3.3896,147.51,147.45,3.3907]
[1727055513365,3.3896,147.51,147.46,18.23]
[1727055513867,3.3897,147.5,147.46,18.23]
[1727055514160,7.50630016,147.54,147.42,18.23]
[1727055514351,3.3903,147.48,147.42,18.23]
[1727055514662,25.73630016,147.54,147.43,3.3911]
[1727055514862,25.73630016,147.54,147.42,18.23]
[1727055515065,7.50630016,147.54,147.44,18.23]
[1727055515966,18.23,147.52,147.27,6.7898]
[1727055516268,18.23,147.52,147.4,18.23]
[1727055516561,25.73630016,147.54,147.4,18.23]
[1727055516767,25.73630016,147.54,147.42,3.3913]
[1727055517569,3.3907,147.46,147.41,3.3916]
[1727055518158,3.3904,147.47,147.42,3.3914]
[1727055518454,7.50630016,147.54,147.42,18.23]
[1727055518657,7.50630016,147.54,147.46,3.3905]
[1727055518953,7.50630016,147.54,147.45,18.23]
[1727055519661,7.50630016,147.54,147.47,21.6202]
[1727055519867,7.50630016,147.54,147.47,18.23]
[1727055520361,7.50630016,147.54,147.47,21.6202]
[1727055520572,7.50630016,147.54,147.47,18.23]
[1727055520764,7.50630016,147.54,147.47,21.6203]
[1727055521568,3.3895,147.51,147.47,21.6203]
[1727055522261,7.50630016,147.54,147.47,21.6203]
[1727055522470,3.3896,147.5,147.47,21.6203]
[1727055523076,7.50630016,147.54,147.45,18.23]
[1727055523570,3.3904,147.47,147.45,18.23]
[1727055523778,7.50630016,147.54,147.45,18.23]
[1727055524073,7.50630016,147.54,147.46,3.3904]
[1727055524973,3.39,147.49,147.45,21.6207]
[1727055525965,7.50630016,147.54,147.46,3.3904]
[1727055526174,3.3897,147.5,147.45,18.23]
[1727055526369,4.1888,147.54,147.33,72.61032109]
[1727055526670,18.23,147.49,147.37,18.23]
[1727055527059,3.3924,147.38,147.34,21.6231]
[1727055527567,3.34419366,147.42,147.34,18.23]
[1727055527867,18.23,147.48,147.34,18.23]
[1727055528069,2.6819,147.47,147.37,21.6226]
[1727055528972,2.6819,147.47,147.37,18.23]
[1727055529167,3.3913,147.43,147.37,18.23]
[1727055529874,3.3915,147.42,147.37,18.23]
[1727055530076,3.39431163,147.46,147.4,3.3919]
[1727055530275,2.6819,147.47,147.4,21.6219]
[1727055530779,3.3905,147.47,147.42,21.6213]
[1727055530965,3.3905,147.47,147.42,18.23]
[1727055531472,3.3905,147.47,147.43,3.3911]
[1727055531666,2.6764,147.52,147.42,18.23]
[1727055532676,3.3906,147.46,147.42,21.6214]
[1727055533077,2.6764,147.52,147.42,21.6214]
[1727055533271,2.6764,147.52,147.42,18.23]
[1727055533869,3.3905,147.47,147.42,21.6213]
[1727055534376,3.3905,147.47,147.45,11.39]
[1727055534878,3.3902,147.48,147.45,11.39]
[1727055535070,2.6764,147.52,147.45,11.39]
[1727055536171,3.3902,147.48,147.45,11.39]
[1727055536776,2.6764,147.52,147.45,11.39]
[1727055536975,3.3904,147.47,147.45,11.39]
[1727055537573,3.3905,147.46,147.45,11.39]
[1727055537973,2.6764,147.52,147.45,11.39]
[1727055538383,3.3905,147.46,147.45,11.39]
[1727055538576,2.6764,147.52,147.45,11.39]
[1727055539079,3.3902,147.48,147.45,11.39]
[1727055539675,2.6764,147.52,147.33,98.02485913]
[1727055539890,11.39,147.48,147.37,11.39]
[1727055540177,11.39,147.48,147.32,11.39]
[1727055540178,3.3924,147.38,147.35,11.39]
[1727055540979,3.3921,147.39,147.37,11.39]
[1727055541172,3.36115068,147.43,147.37,11.39]
[1727055541368,11.39,147.48,147.37,11.39]
[1727055541569,3.392,147.4,147.37,11.39]
[1727055542185,3.3917,147.42,147.37,11.39]
[1727055542478,18.1691,147.51,147.41,11.39]
[1727055542679,14.53244108,147.5,147.41,11.39]
[1727055543079,3.32417396,147.52,147.43,11.39]
[1727055543080,14.71417396,147.52,147.43,11.39]
[1727055543378,3.32417396,147.52,147.45,11.39]
[1727055543585,11.39,147.54,147.45,11.39]
[1727055543780,0.64738393,147.55,147.47,11.39]
[1727055544274,0.64738393,147.55,147.48,18.24]
[1727055544480,3.41117371,147.54,147.48,18.24]
[1727055544679,3.3893,147.52,147.48,18.24]
[1727055545979,3.3894,147.51,147.48,18.24]
[1727055546283,4.06788318,147.55,147.46,18.24]
[1727055547673,4.06788318,147.55,147.48,18.24]
[1727055548781,3.3895,147.51,147.48,18.24]
[1727055549082,3.3895,147.51,147.46,3.3903]
[1727055549281,3.3892,147.52,147.47,3.3902]
[1727055549477,4.06788318,147.55,147.48,18.24]
[1727055549884,3.3891,147.53,147.48,21.6299]
[1727055550181,4.06788318,147.55,147.48,21.6299]
[1727055550388,4.06788318,147.55,147.48,18.24]
[1727055550681,4.06788318,147.55,147.48,21.63]
[1727055550879,4.06788318,147.55,147.45,18.24]
[1727055551687,18.62771986,147.55,147.45,18.24]
[1727055551890,3.3895,147.51,147.47,3.3902]
[1727055552077,4.06788318,147.55,147.47,3.3902]
[1727055552277,4.06788318,147.55,147.47,18.24]
[1727055552482,3.389,147.53,147.47,18.24]
[1727055552687,3.389,147.53,147.48,4.1355]
[1727055552886,4.07047128,147.55,147.48,4.1355]
[1727055553187,3.3889,147.53,147.49,3.3898]
[1727055553385,0.64738393,147.55,147.48,4.1355]
[1727055553888,4.08946206,147.55,147.48,4.1355]
[1727055554384,3.3898,147.5,147.48,4.1355]
[1727055554685,4.08946206,147.55,147.48,4.1355]
[1727055554984,4.08946206,147.55,147.49,3.3897]
[1727055555185,4.08946206,147.55,147.48,4.1355]
[1727055556081,3.3894,147.51,147.48,4.1355]
[1727055556278,4.08946206,147.55,147.45,18.24]
[1727055557286,18.6646078,147.55,147.46,3.3904]
[1727055557487,26.79554309,147.54,147.45,18.24]
[1727055557691,3.3896,147.5,147.46,3.3904]
[1727055558087,14.57514574,147.52,147.45,18.24]
[1727055558389,26.79567022,147.54,147.47,18.24]
[1727055558587,26.79567022,147.54,147.5,18.24]
[1727055558791,14.57514574,147.53,147.5,21.6295]
[1727055558988,4.00875998,147.55,147.5,18.24]
[1727055559195,3.97721847,147.55,147.39,81.38]
[1727055559491,3.97721847,147.55,147.46,1.3973]
[1727055559685,3.97721847,147.55,147.48,3.3901]
[1727055560289,3.3894,147.52,147.48,3.3901]
[1727055560788,3.3896,147.51,147.46,4.7876]
[1727055561086,3.3896,147.51,147.46,1.3973]
[1727055561488,3.3896,147.51,147.47,3.3902]
[1727055562403,3.97721847,147.55,147.46,1.3973]
[1727055562699,18.24,147.54,147.43,18.24]
[1727055562996,30.7738616,147.55,147.44,3.391]
[1727055562997,14.57572302,147.53,147.44,3.391]
[1727055563186,18.55294149,147.55,147.44,3.391]
[1727055563387,3.3907,147.46,147.42,1.3309]
[1727055563689,3.41778591,147.47,147.42,1.3309]
[1727055563994,3.97721847,147.55,147.38,18.24]
[1727055563995,18.24,147.5,147.38,18.24]
[1727055564191,15.89932302,147.49,147.38,18.24]
[1727055564495,3.391,147.44,147.39,3.3919]
[1727055564994,3.391,147.44,147.4,18.24]
[1727055565186,3.391,147.44,147.4,21.6319]
[1727055565689,1.3236,147.49,147.4,18.24]
[1727055566296,1.3236,147.49,147.42,11.4]
[1727055566886,3.391,147.44,147.42,11.4]
[1727055569193,3.3909,147.45,147.42,11.4]
[1727055569898,14.0544,147.51,147.42,11.4]
[1727055570496,3.3908,147.45,147.42,11.4]
[1727055571295,3.3906,147.46,147.42,11.4]
[1727055571499,3.3906,147.46,147.42,14.7913]
[1727055571806,14.58053163,147.5,147.42,11.4]
[1727055572103,14.0544,147.51,147.44,3.3909]
[1727055572404,3.3899,147.49,147.44,14.7909]
[1727055572596,3.3899,147.49,147.45,3.3908]